bitfinex/quotes_ETHUSD_20220731
["timestamp","ask_amount","ask_price","bid_price","bid_amount"]
[1659306348026,3.3,1690.1,1689.6,2.89804672]
[1659306348346,0.3,1690.1,1689.6,2.89804672]
[1659306348719,0.5957984,1690.1,1689.5,13.62524672]
[1659306349780,0.94051275,1690.1,1689.5,13.62524672]
[1659306350037,0.2958064,1690.0,1689.5,13.62524672]
[1659306350204,0.5958064,1690.0,1689.5,13.62524672]
[1659306350574,0.8958064,1690.0,1689.5,13.62524672]
[1659306350840,0.8958064,1690.0,1689.5,13.56775225]
[1659306350841,0.29581,1689.7,1689.5,13.56775225]
[1659306351017,0.29581,1689.7,1689.5,2.89804672]
[1659306351453,0.29581,1689.7,1689.4,2.90214157]
[1659306351652,0.3,1689.6,1689.4,2.90214157]
[1659306351804,0.3,1689.6,1689.5,2.89804672]
[1659306352007,0.29581,1689.7,1689.5,2.89804672]
[1659306352207,0.29581,1689.7,1689.4,2.89804672]
[1659306354666,0.34471435,1689.9,1689.5,0.0027782]
[1659306354667,0.29576,1689.9,1689.5,0.0027782]
[1659306354848,0.29576,1689.9,1689.6,2.89804672]
[1659306356681,0.29576,1689.9,1689.6,3.09804672]
[1659306356832,0.29576,1689.9,1689.7,2.89804672]
[1659306359773,0.35079362,1689.9,1689.7,2.89804672]
[1659306363204,0.35079362,1689.9,1689.7,2.90082459]
[1659306363409,0.35079362,1689.9,1689.8,2.89804672]
[1659306364081,0.65079362,1689.9,1689.4,0.05503689]
[1659306364257,0.29584,1689.8,1689.4,0.00503689]
[1659306364460,2.07107,1689.8,1689.4,0.00503689]
[1659306364750,2.37107,1689.8,1689.1,11.1278]
[1659306364885,2.37107,1689.8,1689.2,2.89804672]
[1659306365089,2.37107,1689.8,1689.3,0.00503723]
[1659306365273,0.29583,1689.7,1689.3,0.00503723]
[1659306365470,0.3,1689.6,1689.3,0.00503723]
[1659306365696,0.3,1689.6,1689.3,2.90308395]
[1659306365907,0.74974797,1689.9,1689.4,2.89804672]
[1659306366112,0.59578,1689.8,1689.4,2.89804672]
[1659306366676,0.05336593,1689.7,1689.4,2.89804672]
[1659306366977,0.34915593,1689.7,1689.4,2.89804672]
[1659306367175,0.29915593,1689.7,1689.4,2.89804672]
[1659306367492,0.29579,1689.7,1689.4,2.89804672]
[1659306369303,0.5916,1689.7,1689.4,2.89804672]
[1659306371583,0.05260836,1689.5,1689.4,3.07809649]
[1659306372005,0.05260836,1689.5,1689.4,2.89804672]
[1659306375592,0.29577,1689.7,1689.4,2.89804672]
[1659306375792,0.29577,1689.7,1689.4,4.37684672]
[1659306376131,0.29577,1689.7,1689.5,2.89804672]
[1659306377806,0.29577,1689.7,1689.5,4.37688672]
[1659306378024,2.07463,1689.8,1689.6,2.89804672]
[1659306378190,5.40717,1690.1,1689.6,2.89804672]
[1659306378191,0.05,1690.1,1689.8,0.2]
[1659306378391,11.77,1690.4,1689.9,2.89804672]
[1659306378588,0.29569,1690.2,1689.9,2.89804672]
[1659306378859,1.7744,1690.2,1689.9,2.89804672]
[1659306379037,1.7744,1690.2,1689.7,11.21914672]
[1659306379190,5.74318543,1690.1,1689.7,11.21914672]
[1659306379389,6.34318543,1690.1,1689.7,11.21914672]
[1659306379588,0.29573,1690.0,1689.7,11.21914672]
[1659306379896,0.29573,1690.0,1689.7,2.89804672]
[1659306383334,1.77447,1690.0,1689.7,2.89804672]
[1659306383667,0.34676416,1689.9,1689.7,2.89804672]
[1659306384180,1.82555416,1689.9,1689.7,1.47871]
[1659306384480,0.59161,1689.8,1689.4,0.00409485]
[1659306384775,0.3,1689.7,1689.4,2.90214157]
[1659306384964,0.5958,1689.7,1689.4,2.90214157]
[1659306385279,2.07061,1689.7,1689.5,2.89804672]
[1659306385634,0.3,1689.6,1689.5,2.89804672]
[1659306386035,0.3,1689.6,1689.2,18.21304196]
[1659306386348,3.55055,1689.5,1689.2,15.36384196]
[1659306386549,1.77523,1689.5,1689.2,2.90214196]
[1659306386875,1.77529,1689.4,1689.2,2.89804672]
[1659306387082,0.3,1689.3,1689.2,2.89804672]
[1659306387643,1.82630416,1689.4,1689.2,2.89804672]
[1659306388045,2.12217416,1689.4,1689.2,2.89804672]
[1659306389378,0.3,1689.3,1689.2,2.89804672]
[1659306391402,2.37116,1689.3,1689.1,3.1092]
[1659306391607,2.37116,1689.3,1689.1,0.007]
[1659306391980,3.85063,1689.3,1689.1,0.007]
[1659306392180,4.14655,1689.3,1689.1,0.007]
[1659306392568,2.42217416,1689.3,1689.1,0.007]
[1659306393301,2.12629416,1689.3,1689.1,0.007]
[1659306393516,0.34689416,1689.3,1689.1,2.90504672]
[1659306393667,0.34689416,1689.3,1689.2,0.58377869]
[1659306393868,0.34689416,1689.3,1689.2,0.00277869]
[1659306394118,0.64689416,1689.3,1689.2,0.00277869]
[1659306394263,4.89219416,1689.3,1689.1,0.007]
[1659306394665,1.48690851,1689.3,1689.1,0.007]
[1659306394863,1.43690851,1689.3,1689.1,0.007]
[1659306396105,1.73690851,1689.3,1689.1,0.007]
[1659306397471,0.05101416,1689.3,1689.1,2.90504672]
[1659306397817,0.05101416,1689.3,1689.2,3.09804672]
[1659306397973,0.05101416,1689.3,1689.2,2.89804672]
[1659306398372,1.416e-05,1689.3,1689.2,3.29804672]
[1659306398573,0.05101416,1689.3,1689.2,3.29804672]
[1659306400441,0.05101416,1689.3,1689.2,2.89804672]
[1659306401111,0.05101416,1689.3,1689.1,0.007]
[1659306401112,0.63201416,1689.3,1689.1,0.007]
[1659306401691,0.99572851,1689.3,1689.1,0.007]
[1659306405351,0.39572851,1689.3,1689.1,0.007]
[1659306405839,0.05101416,1689.3,1689.1,0.007]
[1659306407223,0.64693416,1689.3,1689.1,0.007]
[1659306407440,0.94285416,1689.3,1689.1,0.007]
[1659306408459,2.71854746,1689.3,1689.1,0.007]
[1659306408965,4.19831746,1689.3,1689.1,0.007]
[1659306410413,5.67812056,1689.3,1689.1,0.007]
[1659306410727,4.19831746,1689.3,1689.1,0.007]
[1659306412181,4.34471435,1689.2,1689.1,0.007]
[1659306412582,4.64471435,1689.2,1689.1,0.007]
[1659306412824,7.54276107,1689.2,1689.1,0.007]
[1659306413286,7.54276107,1689.2,1689.0,0.1678]
[1659306413618,3.79009562,1689.1,1688.6,0.50115]
[1659306413850,2.89804672,1689.0,1688.6,0.45115]
[1659306414055,5.61804568,1688.7,1688.6,0.45115]
[1659306414206,5.61804568,1688.7,1688.2,0.35696786]
[1659306414207,5.91804568,1688.7,1688.2,0.40696786]
[1659306414408,5.91804568,1688.7,1688.2,0.35696786]
[1659306414409,3.0,1688.6,1688.2,0.35696786]
[1659306414648,6.19414672,1688.6,1688.2,0.02901066]
[1659306414852,2.89804672,1688.5,1688.2,0.02901066]
[1659306415056,3.5,1688.4,1688.2,0.02901066]
[1659306415361,13.39504672,1688.3,1687.8,0.05]
[1659306415562,4.82473672,1688.2,1687.6,0.05]
[1659306415743,10.22769171,1688.2,1686.7,3.69328293]
[1659306415926,10.22769171,1688.2,1686.1,3.123]
[1659306415927,1.123,1687.0,1684.7,1.54625863]
[1659306416136,1.123,1687.0,1684.2,2.69074607]
[1659306416137,0.2,1685.1,1684.0,0.29647]
[1659306416340,3.5,1684.8,1683.3,0.30520737]
[1659306416522,3.5,1684.8,1683.0,0.3990045]
[1659306416523,0.17,1684.1,1683.0,0.3990045]
[1659306416721,7.0,1684.7,1682.8,2.99065241]
[1659306416722,3.72,1684.2,1682.8,1.73386]
[1659306416946,3.0,1684.4,1683.1,2.36531233]
[1659306416947,0.47,1683.9,1683.1,2.36531233]
[1659306417139,0.3,1683.9,1683.4,2.75673753]
[1659306417358,2.249,1683.5,1682.9,2.77906783]
[1659306417509,1.126,1683.2,1682.9,2.62906783]
[1659306417707,3.369,1683.2,1682.9,2.57906783]
[1659306417964,2.393,1683.2,1682.9,0.17598436]
[1659306418148,3.32,1683.2,1682.7,2.30708184]
[1659306418313,3.32,1683.2,1683.0,2.69714568]
[1659306418314,1.427,1683.2,1683.0,2.69714568]
[1659306418507,0.99,1683.1,1682.7,0.00647143]
[1659306418725,2.553,1683.2,1682.8,0.2]
[1659306418726,1.77171435,1683.2,1682.8,0.2]
[1659306418924,5.91933571,1684.0,1683.1,11.0]
[1659306419139,1.123,1683.6,1682.9,3.5]
[1659306419339,0.34471435,1683.5,1682.9,3.67598436]
[1659306419614,0.3,1683.9,1683.2,6.46924879]
[1659306419818,0.00083787,1683.5,1683.4,0.2]
[1659306420140,0.00083787,1683.5,1683.0,0.05]
[1659306420452,1.123,1683.3,1683.0,0.05]
[1659306420616,9.65034474,1684.0,1683.1,0.2]
[1659306420617,0.00083787,1683.6,1683.1,0.2]
[1659306420822,6.20118261,1684.0,1683.0,3.5]
[1659306421053,1.123,1684.3,1683.3,0.2]
[1659306421358,0.2,1683.7,1683.3,0.05]
[1659306421511,1.67060224,1683.7,1683.0,0.05]
[1659306421711,0.34471435,1683.7,1682.9,0.05]
[1659306421940,0.34471435,1683.7,1682.8,0.05]
[1659306422554,1.5698,1683.6,1682.8,0.05]
[1659306422711,4.04471435,1683.5,1682.7,0.05]
[1659306422911,7.7,1683.3,1682.1,4.0]
[1659306423116,1.323,1683.0,1682.1,4.0]
[1659306423315,0.3,1683.0,1682.1,3.8]
[1659306423512,0.05,1683.0,1682.1,3.8]
[1659306423749,0.05,1683.0,1682.1,0.05]
[1659306423750,0.2,1682.6,1682.1,0.05]
[1659306424027,0.447,1682.9,1680.4,0.584]
[1659306424028,0.8593071,1681.0,1680.4,0.584]
[1659306424208,0.12615824,1681.9,1680.6,4.0]
[1659306424209,0.05,1681.2,1680.6,4.0]
[1659306424427,0.12615824,1681.9,1680.6,4.0]
[1659306424428,0.05,1681.4,1680.8,2.62397682]
[1659306424609,0.34471435,1681.4,1680.6,4.0]
[1659306424834,0.34471435,1681.4,1680.6,3.8]
[1659306424835,0.39471435,1681.4,1680.6,3.8]
[1659306425274,0.39471435,1681.4,1680.6,3.81563733]
[1659306425477,3.9,1682.3,1680.6,3.81563733]
[1659306425478,5.0,1683.1,1681.3,1.115]
[1659306425680,5.0,1683.1,1681.7,3.97062594]
[1659306425899,0.447,1683.0,1681.7,3.97062594]
[1659306426122,0.4469,1683.3,1682.3,3.5]
[1659306426341,0.4469,1683.3,1681.8,3.67598436]
[1659306426475,0.4469,1683.3,1681.3,1.5624]
[1659306426476,0.2,1682.2,1681.3,1.5624]
[1659306426682,0.1,1682.2,1681.5,3.5]
[1659306426878,0.1,1682.2,1681.3,1.115]
[1659306426879,0.1,1682.1,1681.3,1.115]
[1659306427104,0.05,1682.3,1681.6,3.5]
[1659306427310,1.28448039,1682.8,1681.3,1.115]
[1659306427311,0.05,1682.4,1682.0,1.116]
[1659306427512,0.05,1682.7,1682.3,3.5]
[1659306427697,0.05,1682.9,1682.6,3.5]
[1659306427880,0.05,1683.2,1682.8,3.5]
[1659306428118,0.05,1683.4,1683.1,3.5]
[1659306428284,5.37372249,1683.7,1683.3,3.5]
[1659306428485,5.37372249,1683.7,1683.2,3.0]
[1659306428486,0.1,1683.5,1683.2,3.0]
[1659306428704,0.1,1683.5,1683.1,1.116]
[1659306428931,0.1,1683.3,1682.8,0.05]
[1659306429131,0.1,1683.3,1682.6,0.05]
[1659306429335,0.1,1683.4,1682.6,0.34471435]
[1659306429538,6.43549724,1683.7,1682.6,0.34471435]
[1659306429738,6.43549724,1683.7,1682.8,1.116]
[1659306429969,0.4467,1684.2,1683.5,0.4455]
[1659306430120,0.4466,1684.5,1683.6,0.34471435]
[1659306430319,0.47419,1684.5,1683.6,0.39471435]
[1659306430520,0.1,1684.3,1683.6,0.39471435]
[1659306430813,0.1,1684.3,1683.6,0.34471435]
[1659306431246,0.4467,1684.2,1683.6,0.34471435]
[1659306431509,0.05,1684.4,1684.0,3.5]
[1659306431739,0.05400701,1684.4,1684.3,1.116]
[1659306431950,0.00410701,1684.4,1684.3,1.116]
[1659306432143,0.05,1684.8,1684.4,0.04989299]
[1659306432359,0.05,1685.0,1684.5,0.34471435]
[1659306432610,0.05,1685.2,1684.6,3.5]
[1659306432760,0.05,1685.4,1684.7,1.115]
[1659306432925,0.05,1685.5,1684.7,6.115]
[1659306433128,0.05,1685.5,1685.1,0.1]
[1659306433329,0.05,1685.7,1685.1,4.716]
[1659306433547,1.74637964,1686.2,1685.1,4.616]
[1659306433548,0.05,1685.9,1685.1,4.616]
[1659306433745,0.05,1685.9,1685.2,0.34471435]
[1659306433961,0.05,1686.0,1685.2,0.34471435]
[1659306434135,0.05,1686.0,1685.4,1.116]
[1659306434322,0.05,1686.2,1685.6,3.5]
[1659306434524,0.4961,1686.4,1685.4,7.766]
[1659306434748,0.4961,1686.4,1685.4,0.05]
[1659306434749,0.1,1685.9,1685.4,0.05]
[1659306434916,0.1,1685.7,1685.2,0.05]
[1659306435116,0.2,1685.9,1685.0,0.05]
[1659306435117,0.1,1685.3,1685.0,0.05]
[1659306435317,0.1,1685.1,1684.7,0.05]
[1659306435624,0.1,1685.1,1684.6,0.34471435]
[1659306436121,0.4464,1685.2,1684.6,0.34471435]
[1659306436361,0.05,1685.4,1684.6,0.34471435]
[1659306436564,0.05,1685.4,1684.8,0.00577891]
[1659306436797,0.4963,1685.5,1684.9,0.34471435]
[1659306437006,0.1,1685.4,1684.9,0.34471435]
[1659306437210,0.05,1685.6,1684.9,0.34471435]
[1659306437360,0.7463,1685.7,1685.1,1.115]
[1659306437361,0.05,1685.7,1685.1,1.115]
[1659306437558,0.54775084,1685.9,1685.2,3.24276107]
[1659306437759,0.49775084,1685.9,1685.3,2.89804672]
[1659306437960,0.05155084,1685.9,1685.3,2.89804672]
[1659306438179,0.1,1685.5,1685.1,0.05577805]
[1659306438466,3.3,1685.2,1685.1,0.00577805]
[1659306438683,3.3,1685.2,1684.7,0.05]
[1659306438684,2.0,1685.1,1684.7,0.05]
[1659306438966,2.0,1685.1,1684.4,0.05]
[1659306438967,0.1,1684.8,1684.4,0.05]
[1659306439168,0.35,1685.0,1684.1,3.65]
[1659306439491,0.3,1683.9,1683.8,0.00051392]
[1659306439796,0.3,1683.9,1683.5,0.4455]
[1659306439978,0.4468,1683.8,1683.5,0.4455]
[1659306440199,4.1,1683.6,1683.5,0.4455]
[1659306440368,7.44484672,1683.6,1683.5,0.3955]
[1659306440568,3.49804672,1683.6,1683.5,0.3955]
[1659306440821,0.3,1683.6,1683.5,0.3955]
[1659306440987,0.1,1683.7,1683.5,0.3955]
[1659306441188,0.05155084,1683.8,1683.5,0.3955]
[1659306441520,5.1,1683.6,1683.5,0.3955]
[1659306442630,4.9,1683.6,1683.5,0.3955]
[1659306442918,0.6,1683.6,1683.5,0.3955]
[1659306443080,0.05155084,1683.8,1683.5,0.2955]
[1659306443966,0.05155084,1683.8,1683.5,0.64021435]
[1659306445096,0.05155084,1683.8,1683.5,4.14021435]
[1659306445309,0.05155084,1683.8,1683.5,0.54021435]
[1659306445885,0.1,1683.6,1683.5,0.1955]
[1659306446278,0.3,1683.6,1683.5,0.1955]
[1659306446478,3.14804672,1683.6,1683.5,0.1955]
[1659306446693,3.24804672,1683.6,1683.5,0.1955]
[1659306446892,3.49959654,1683.6,1683.5,0.1955]
[1659306447094,3.49959654,1683.6,1683.2,0.00535056]
[1659306447335,2.89804672,1683.5,1683.2,0.00535056]
[1659306447626,2.89804672,1683.5,1682.9,0.05]
[1659306447782,0.05,1683.1,1682.7,0.05]
[1659306447986,0.2,1683.3,1682.2,8.68006495]
[1659306447987,0.05,1682.8,1682.4,0.05]
[1659306448183,0.05,1682.8,1682.1,0.05]
[1659306448382,0.05,1682.8,1682.1,0.34471435]
[1659306448622,0.05,1682.9,1682.1,0.34471435]
[1659306448778,2.89804672,1682.8,1682.2,0.4472]
[1659306448980,2.89804672,1682.8,1681.5,3.5]
[1659306448981,0.05,1682.4,1681.5,3.5]
[1659306449183,0.05,1682.4,1681.7,0.15]
[1659306449402,0.05,1682.5,1681.8,0.79201435]
[1659306449610,0.05,1682.6,1681.8,0.79201435]
[1659306449819,0.05,1682.6,1681.8,0.96799871]
[1659306449978,0.05,1682.6,1681.8,4.02069871]
[1659306450208,0.05,1682.6,1681.8,0.67069871]
[1659306450379,0.05,1682.6,1681.9,2.89804672]
[1659306450579,5.48366963,1682.9,1681.9,2.89804672]
[1659306450580,0.05,1682.7,1682.2,2.89804672]
[1659306450822,0.05,1682.9,1682.5,2.89804672]
[1659306450990,0.05154982,1683.0,1682.5,2.39804672]
[1659306451342,0.05154982,1683.0,1682.6,0.34471435]
[1659306451784,0.05,1682.8,1682.4,0.00350637]
[1659306451993,0.10154982,1683.0,1682.4,2.90155309]
[1659306452179,0.05154982,1683.0,1682.5,2.89804672]
[1659306452621,0.05154982,1683.0,1682.6,0.49471435]
[1659306453126,0.05154982,1682.7,1682.6,3.24276107]
[1659306453336,0.05,1683.4,1682.6,3.24276107]
[1659306453635,0.39834982,1683.7,1682.7,2.89804672]
[1659306453799,2.89804672,1683.6,1682.7,0.05]
[1659306453983,3.34484672,1683.6,1682.7,0.05]
[1659306454183,0.05154982,1683.0,1682.7,2.94804672]
[1659306454420,0.05154982,1683.0,1682.8,2.89804672]
[1659306454600,0.05154982,1683.0,1682.7,0.34471435]
[1659306454800,0.05,1682.8,1682.4,0.05]
[1659306455001,0.05,1682.8,1682.5,2.90259123]
[1659306455261,0.05154982,1683.0,1682.5,2.90259123]
[1659306455423,0.05154982,1683.0,1682.5,0.00454451]
[1659306455646,0.05154982,1683.0,1682.1,4.87584451]
[1659306455787,0.05154982,1683.0,1682.5,2.89804672]
[1659306456350,0.05154982,1683.0,1682.6,0.34471435]
[1659306456503,0.05154982,1683.0,1682.6,3.24276107]
[1659306456711,0.05154982,1683.0,1682.7,2.89804672]
[1659306457930,0.05154982,1683.0,1682.6,0.34471435]
[1659306458794,0.05,1683.2,1682.9,4.01304672]
[1659306459016,0.05,1683.5,1683.0,3.24276107]
[1659306459218,0.05,1683.6,1683.1,2.89804672]
[1659306459632,0.05,1683.6,1683.1,3.24276107]
[1659306459834,0.05,1683.8,1683.2,2.89804672]
[1659306460037,0.0999877,1683.2,1683.0,0.05]
[1659306460248,0.0999877,1683.2,1682.6,0.05]
[1659306460454,0.0999877,1683.2,1682.7,2.89804672]
[1659306460660,0.0499877,1683.2,1682.7,2.89804672]
[1659306460869,0.0499877,1683.2,1682.8,2.89804672]
[1659306461072,0.05,1683.4,1682.8,2.89804672]
[1659306461218,0.05,1683.5,1682.9,3.34471435]
[1659306461417,0.05,1683.6,1683.0,2.89804672]
[1659306461719,0.0999877,1683.7,1683.0,2.89804672]
[1659306461934,0.0499877,1683.7,1683.0,2.89804672]
[1659306462678,0.05,1683.1,1683.0,2.89804672]
[1659306462816,0.05,1683.1,1682.9,0.34471435]
[1659306463019,0.25,1683.4,1682.5,7.8037]
[1659306463217,0.2,1682.9,1682.5,0.05]
[1659306463442,0.2,1682.9,1682.4,4.7775]
[1659306464484,3.09804672,1682.9,1682.4,4.7775]
[1659306465266,3.7,1682.5,1682.4,4.7775]
[1659306465438,4.4471,1682.5,1682.4,4.7775]
[1659306465637,4.7471,1682.5,1682.4,4.7775]
[1659306465855,7.34514672,1682.5,1682.4,4.7775]
[1659306466018,5.63664827,1682.5,1682.4,4.7275]
[1659306466219,5.63664827,1682.5,1682.0,0.05284569]
[1659306466420,2.89804672,1682.4,1681.8,0.05]
[1659306466647,2.89804672,1682.4,1681.6,0.05]
[1659306466848,2.94804672,1682.4,1681.7,0.34471435]
[1659306467047,3.64235672,1682.4,1681.9,0.00376831]
[1659306467289,0.2,1682.3,1681.9,0.00376831]
[1659306467485,0.2,1682.1,1681.9,0.00376831]
[1659306467703,3.01804672,1682.1,1681.9,0.00376831]
[1659306467866,3.01804672,1682.1,1681.5,0.05]
[1659306468069,3.76250672,1682.1,1681.5,0.34471435]
[1659306468258,0.29726,1682.1,1681.5,0.34471435]
[1659306468456,0.41726,1682.1,1681.5,0.34471435]
[1659306468655,0.29726,1682.1,1681.5,0.34471435]
[1659306468897,0.29726,1682.1,1681.7,0.00376887]
[1659306469067,0.12,1682.0,1681.7,0.00376887]
[1659306469251,3.06688641,1682.0,1681.7,0.00376887]
[1659306469452,0.12,1681.6,1681.4,0.05]
[1659306469690,0.05,1681.9,1681.4,2.89804672]
[1659306469896,0.05,1681.9,1681.0,3.34647011]
[1659306469897,0.04883969,1682.0,1681.2,0.05]
[1659306470069,0.54603969,1682.0,1681.3,2.89804672]
[1659306470331,2.89804672,1681.9,1681.4,0.34471435]
[1659306470493,0.29728,1681.9,1681.4,0.34471435]
[1659306471610,0.29728,1681.9,1681.2,2.94804672]
[1659306471611,0.74458,1681.9,1681.2,2.94804672]
[1659306471764,0.29728,1681.9,1681.2,2.89804672]
[1659306472465,0.29728,1681.9,1681.3,0.08]
[1659306472665,0.29728,1681.9,1681.4,2.89804672]
[1659306472871,0.29728,1681.9,1681.4,5.71473168]
[1659306473075,0.04883969,1681.8,1681.5,2.89804672]
[1659306473262,0.04883969,1681.8,1681.6,3.0]
[1659306473477,0.05,1682.1,1681.8,0.04716031]
[1659306473698,0.05,1682.4,1682.1,0.08]
[1659306473897,0.05,1682.7,1682.3,0.08]
[1659306474124,0.05,1682.9,1682.4,2.89804672]
[1659306474290,13.3044,1683.4,1682.4,2.89804672]
[1659306474291,0.05,1683.1,1682.4,2.89804672]
[1659306474496,0.29706,1683.1,1682.6,0.08]
[1659306474716,7.20129553,1683.4,1682.7,2.89804672]
[1659306474717,0.05,1683.3,1682.7,2.89804672]
[1659306474897,0.05,1683.4,1682.7,2.89804672]
[1659306475105,0.34699,1683.5,1682.6,2.94804672]
[1659306475318,0.91379,1683.5,1682.6,0.05]
[1659306475481,4.29379,1683.5,1682.6,0.05]
[1659306475682,0.29708,1683.3,1682.6,0.05]
[1659306475929,0.29707,1683.2,1682.5,0.05]
[1659306476138,0.74397,1683.2,1682.6,0.34471435]
[1659306476282,0.74397,1683.2,1682.7,2.89804672]
[1659306476283,0.29707,1683.2,1682.7,2.89804672]
[1659306476483,0.29707,1683.2,1682.6,0.34471435]
[1659306476917,0.29707,1683.2,1682.7,2.89804672]
[1659306477124,0.29707,1683.2,1682.6,0.34471435]
[1659306477327,0.04809969,1683.1,1682.7,2.89804672]
[1659306477635,0.04809969,1683.1,1682.7,3.24276107]
[1659306477853,2.94614641,1683.1,1682.4,0.05]
[1659306478004,0.29707,1683.0,1682.5,2.89804672]
[1659306478317,0.29707,1683.0,1682.6,0.34471435]
[1659306478491,0.29707,1683.0,1682.6,3.24276107]
[1659306479290,0.04809969,1683.1,1682.7,2.89804672]
[1659306479499,0.04809969,1683.1,1682.7,2.97804672]
[1659306479803,0.04809969,1683.1,1682.9,0.08]
[1659306480002,0.04809969,1683.1,1682.9,2.89804672]
[1659306481228,0.29701,1683.3,1682.9,2.89804672]
[1659306481543,0.04809969,1683.5,1682.9,2.89804672]
[1659306481544,0.09809969,1683.5,1682.9,2.89804672]
[1659306481750,0.04809969,1683.5,1682.9,3.24276107]
[1659306481962,0.04809969,1683.5,1683.0,2.89804672]
[1659306482143,0.34505969,1683.5,1683.0,2.89804672]
[1659306483217,0.34505969,1683.5,1683.1,0.34471435]
[1659306483418,0.29697,1683.9,1683.6,0.08]
[1659306483639,2.09442918,1684.8,1684.4,0.08]
[1659306483850,0.46037971,1685.0,1684.8,0.28]
[1659306484011,0.25,1685.5,1684.9,2.89804672]
[1659306484620,0.25,1685.5,1685.0,0.34471435]
[1659306484842,0.05,1685.7,1685.0,0.34471435]
[1659306485055,0.4463,1685.6,1685.0,0.34471435]
[1659306485253,0.12,1685.3,1684.8,0.05]
[1659306485540,0.12,1685.3,1684.6,0.05]
[1659306485541,0.12,1685.1,1684.6,0.05]
[1659306485678,0.12,1685.1,1684.4,0.05]
[1659306485883,0.12,1684.6,1684.3,0.05]
[1659306486191,0.12,1684.1,1684.0,0.05]
[1659306486375,3.5,1684.4,1683.6,0.05]
[1659306486376,0.12,1683.7,1683.6,0.05]
[1659306486580,0.17,1684.1,1683.4,5.9883]
[1659306486888,0.12,1684.1,1683.4,5.9883]
[1659306487423,0.14353,1684.1,1683.4,5.9883]
[1659306487624,0.89023,1684.1,1683.4,5.9883]
[1659306487864,0.77023,1684.1,1683.5,0.34471435]
[1659306488133,0.62353,1684.1,1683.5,0.34471435]
[1659306488274,0.32353,1684.1,1683.5,0.34471435]
[1659306488474,0.02353,1684.1,1683.5,0.34471435]
[1659306488919,0.02353,1684.1,1683.5,3.24276107]
[1659306489224,0.06758567,1684.1,1683.5,3.24276107]
[1659306490024,0.51428567,1684.1,1683.5,3.24276107]
[1659306490193,0.06758567,1684.1,1683.5,3.24276107]
[1659306490388,0.12,1684.0,1683.3,0.05]
[1659306490586,0.4467,1683.9,1683.2,0.05]
[1659306490815,0.4467,1683.9,1683.1,0.05]
[1659306490816,0.12,1683.6,1683.1,0.05]
[1659306490978,0.12,1683.3,1682.9,0.05]
[1659306491182,0.12,1683.3,1682.8,2.991]
[1659306491481,0.12,1683.3,1682.7,3.1136]
[1659306491693,0.5669,1683.3,1682.7,0.34471435]
[1659306491930,0.12,1683.3,1682.7,0.34471435]
[1659306492687,0.12,1683.0,1682.7,0.34471435]
[1659306493357,0.12,1683.0,1682.4,4.55]
[1659306493527,0.12,1683.0,1682.4,4.84471435]
[1659306494163,0.113,1683.0,1682.4,7.74276107]
[1659306494328,0.0235,1683.1,1682.4,7.74276107]
[1659306494329,0.0235,1683.1,1682.5,2.89804672]
[1659306494673,0.0235,1683.1,1682.6,0.34471435]
[1659306494972,0.0235,1683.1,1682.7,2.89804672]
[1659306495347,0.0235,1683.1,1682.8,0.34471435]
[1659306496051,0.0235,1683.1,1682.9,2.89804672]
[1659306496256,0.0235,1683.2,1682.8,2.89804672]
[1659306496697,0.0235,1683.2,1682.6,2.89804672]
[1659306496896,0.113,1683.0,1682.6,2.89804672]
[1659306497067,0.0235,1683.0,1682.6,2.89804672]
[1659306498677,0.0235,1683.0,1682.3,0.05]
[1659306498898,0.0235,1683.0,1680.9,8.0564]
[1659306498899,0.113,1682.3,1680.9,8.0564]
[1659306499110,0.05,1682.1,1681.0,1.48591]
[1659306499260,0.05,1682.0,1681.2,2.6569502]
[1659306499463,0.05,1682.0,1681.6,2.65935183]
[1659306499657,0.02355,1682.0,1681.6,2.65935183]
[1659306500083,0.02355,1682.0,1681.7,0.34471435]
[1659306500858,0.02355,1682.0,1681.4,0.05]
[1659306500859,0.05,1682.3,1681.4,0.05]
[1659306501102,2.89804672,1682.2,1681.4,0.05]
[1659306501269,4.79541816,1682.2,1681.3,0.05]
[1659306501609,1.64737144,1682.2,1681.3,0.05]
[1659306501813,0.35,1682.2,1681.3,0.05]
[1659306502165,0.05,1682.2,1681.3,0.05]
[1659306502366,0.05,1682.2,1681.4,0.00434093]
[1659306502565,0.05,1682.3,1681.5,0.34471435]
[1659306502791,4.708,1682.6,1681.5,0.34471435]
[1659306502792,0.05,1682.4,1681.5,0.34471435]
[1659306503206,3.39514672,1682.4,1681.5,0.34471435]
[1659306503511,3.39514672,1682.4,1681.6,0.087]
[1659306503512,0.35,1682.4,1681.6,0.087]
[1659306503691,0.04999999,1682.3,1681.7,0.29471435]
[1659306504226,0.05,1682.4,1681.8,0.087]
[1659306504393,0.07354,1682.5,1681.9,0.29471435]
[1659306504579,0.02354,1682.5,1682.0,0.087]
[1659306505181,0.02354,1682.5,1682.1,0.29471435]
[1659306506089,0.02354,1682.5,1682.1,0.24471435]
[1659306506487,0.02354,1682.5,1682.2,0.087]
[1659306507535,10.15324359,1683.1,1682.2,0.087]
[1659306507699,2.89804672,1683.0,1682.2,0.137]
[1659306507900,0.547,1682.9,1682.2,0.087]
[1659306508115,12.2871,1683.3,1682.2,0.087]
[1659306508116,6.18019782,1683.5,1682.5,5.0]
[1659306508313,5.88310782,1683.5,1682.8,0.087]
[1659306508500,5.88310782,1683.5,1683.0,0.087]
[1659306508715,5.88310782,1683.5,1682.9,3.447]
[1659306508912,5.88310782,1683.5,1682.7,0.137]